bitfinex/quotes_ETHUSD_20240630
["timestamp","ask_amount","ask_price","bid_price","bid_amount"]
[1719789874941,2.4479,3450.5,3450.0,0.86294518]
[1719789875140,2.4479,3450.5,3450.0,0.824]
[1719789876961,0.02997505,3450.4,3450.0,0.824]
[1719789877364,3.0,3450.9,3450.1,0.03757199]
[1719789877365,2.34177505,3450.8,3450.1,0.03757199]
[1719789877748,2.34177505,3450.8,3450.2,0.824]
[1719789883267,2.34177505,3450.8,3450.0,0.824]
[1719789884769,2.34177505,3450.8,3450.1,0.03757199]
[1719789885140,2.34177505,3450.8,3449.9,0.824]
[1719789885473,2.87808921,3450.7,3450.2,0.03751007]
[1719789885636,0.02997505,3450.6,3449.8,0.824]
[1719789886142,2.3348,3450.7,3449.0,3.0]
[1719789886334,2.4118,3449.9,3449.0,0.28788335]
[1719789886538,2.4118,3449.9,3448.9,0.824]
[1719789886940,2.4118,3449.9,3448.6,3.0]
[1719789887282,2.4118,3449.9,3448.8,0.824]
[1719789888371,2.4118,3449.9,3449.0,0.824]
[1719789888566,0.02997505,3449.8,3449.0,0.824]
[1719789891054,0.35655256,3449.8,3448.6,3.0]
[1719789891355,0.02997505,3449.7,3448.9,0.824]
[1719789894038,3.1777,3449.6,3448.7,0.824]
[1719789894242,0.02997505,3449.5,3448.7,0.824]
[1719789894522,0.35074256,3449.5,3448.7,0.824]
[1719789894970,0.35074256,3449.5,3448.9,0.824]
[1719789895271,0.02997505,3449.5,3448.9,0.824]
[1719789895471,2.3537,3449.4,3448.7,0.824]
[1719789895676,0.02997505,3449.3,3448.7,0.824]
[1719789899658,0.02997505,3449.3,3448.9,0.824]
[1719789900054,0.02997505,3449.3,3448.7,0.824]
[1719789900582,0.02997505,3449.3,3448.8,0.03508673]
[1719789901481,2.3537,3449.4,3448.9,0.824]
[1719789902479,2.2889,3449.7,3449.3,0.824]
[1719789902681,2.31887505,3449.7,3449.3,0.824]
[1719789903520,2.31887505,3449.7,3449.1,0.824]
[1719789905175,2.31887505,3449.7,3448.7,2.4165]
[1719789905176,9.60105622,3450.2,3449.6,0.824]
[1719789905381,0.02997505,3450.1,3449.6,0.824]
[1719789907577,0.02997505,3450.1,3449.4,0.824]
[1719789908088,0.02997505,3450.1,3449.5,0.03464384]
[1719789908399,9.60105622,3450.2,3449.5,0.03464384]
[1719789909694,9.57305622,3450.2,3449.5,0.03464384]
[1719789910655,0.02997505,3450.1,3449.5,0.03464384]
[1719789912052,0.85397505,3450.1,3449.5,0.03464384]
[1719789912397,0.824,3449.9,3448.9,0.824]
[1719789912582,0.02997505,3449.8,3449.6,0.03457155]
[1719789912782,0.02997505,3449.8,3448.9,0.824]
[1719789912783,2.2929,3449.7,3448.9,0.824]
[1719789912981,2.2929,3449.7,3449.6,0.144]
[1719789913891,2.60459,3449.7,3449.6,0.144]
[1719789914268,2.2929,3449.7,3449.6,0.144]
[1719789914789,2.2929,3449.7,3449.6,0.17857155]
[1719789918677,2.2929,3449.7,3449.6,0.144]
[1719789918985,2.2929,3449.7,3449.6,0.17857729]
[1719789921197,3.1169,3449.7,3449.6,0.17857729]
[1719789921360,3.42859,3449.7,3449.6,0.144]
[1719789922666,1.13569,3449.7,3449.6,0.144]
[1719789922869,3.1581,3449.7,3449.6,0.144]
[1719789926565,2.3341,3449.7,3449.6,0.144]
[1719789926773,3.18807505,3449.7,3449.6,0.144]
[1719789926973,3.73807505,3449.7,3449.6,0.144]
[1719789932289,2.36407505,3449.7,3449.6,0.144]
[1719789932773,2.3341,3449.7,3449.6,0.144]
[1719789932974,2.36407505,3449.7,3449.6,0.144]
[1719789933884,0.02997505,3449.7,3449.6,0.144]
[1719789936734,0.02997505,3449.7,3449.6,0.17862904]
[1719789939624,0.02997505,3449.8,3449.6,0.17862904]
[1719789940907,0.02997505,3450.0,3449.6,0.17862904]
[1719789953742,2.3253,3449.9,3449.6,0.17862904]
[1719789953979,0.02997505,3449.8,3449.6,0.17862904]
[1719789955028,0.02997505,3449.8,3449.6,0.144]
[1719789956139,0.5740279,3449.8,3449.6,0.144]
[1719789956347,0.02997505,3449.7,3449.6,0.144]
[1719789961420,0.02997505,3449.9,3449.6,0.17860948]
[1719789962442,0.02997505,3450.0,3449.6,0.17860948]
[1719789962630,0.02997505,3450.0,3449.7,0.824]
[1719789963431,0.02997505,3450.2,3449.6,0.39102095]
[1719789963626,0.02997505,3450.2,3449.8,0.03448964]
[1719789963828,0.5736869,3450.2,3449.6,0.39102095]
[1719789964028,0.5736869,3450.2,3449.9,0.03442771]
[1719789964227,0.5736869,3450.2,3449.6,0.144]
[1719789964540,0.5736869,3450.2,3450.0,0.03436578]
[1719789964541,0.02997505,3450.2,3450.0,0.03436578]
[1719789964724,0.02997505,3450.2,3449.7,0.824]
[1719789965060,0.02997505,3450.3,3449.7,0.824]
[1719789965359,0.02997505,3450.3,3449.8,0.0344609]
[1719789965544,0.57358297,3450.3,3449.8,0.0344609]
[1719789965743,0.02997505,3450.2,3449.6,0.144]
[1719789966261,0.02997505,3450.2,3449.7,0.03452283]
[1719789967054,0.02997505,3450.3,3449.7,0.03452283]
[1719789967258,0.02997505,3450.3,3449.9,0.824]
[1719789967759,0.02997505,3450.3,3450.0,0.03433704]
[1719789968724,0.02997505,3450.3,3449.8,2.2879]
[1719789969223,0.02997505,3450.3,3449.9,0.03438978]
[1719789970146,7.31215622,3450.5,3450.0,0.824]
[1719789970353,0.02997505,3450.4,3450.0,0.824]
[1719789971342,0.02997505,3450.4,3449.8,2.2879]
[1719789971531,0.02997505,3450.4,3449.8,3.1119]
[1719789971732,0.02997505,3450.4,3450.0,0.824]
[1719789971972,0.02997505,3450.4,3450.2,0.824]
[1719789972128,7.31215622,3450.9,3450.2,0.824]
[1719789972329,0.02997505,3450.8,3450.2,0.824]
[1719789972670,0.02997505,3450.8,3450.3,0.03292786]
[1719789973028,0.02997505,3450.8,3450.2,0.824]
[1719789973224,0.02997505,3450.8,3450.4,0.03286594]
[1719789973529,0.02997505,3450.8,3450.2,0.824]
[1719789973962,0.02997505,3450.8,3450.3,0.03527985]
[1719789974363,0.02997505,3450.8,3450.4,0.03521351]
[1719789974563,0.41940256,3450.8,3450.4,0.03521351]
[1719789974731,0.41940256,3450.8,3450.0,0.824]
[1719789980171,0.41940256,3450.8,3449.9,0.88196831]
[1719789981136,0.824,3450.7,3449.8,2.2879]
[1719789981367,3.2786,3450.5,3448.8,2.2557]
[1719789981564,3.2786,3450.5,3448.7,3.0]
[1719789981565,0.824,3450.3,3449.4,0.824]
[1719789981768,0.02997505,3450.2,3449.4,0.824]
[1719789982072,0.02997505,3450.2,3449.1,2.2557]
[1719789982073,0.02997505,3450.2,3449.5,0.03461336]
[1719789982377,0.02997505,3450.2,3449.7,0.824]
[1719789982558,2.4546,3450.5,3449.7,0.824]
[1719789982761,0.32786,3450.4,3449.7,0.824]
[1719789983071,3.2379,3450.7,3449.8,0.03443142]
[1719789983370,0.55,3450.6,3449.8,0.03443142]
[1719789983674,0.02997505,3450.5,3449.7,0.824]
[1719789983990,0.02997505,3450.6,3449.9,0.824]
[1719789984269,2.44387505,3450.9,3450.1,0.824]
[1719789984472,0.02997505,3450.9,3450.2,2.2752]
[1719789984863,0.02997505,3450.9,3450.3,0.03670363]
[1719789985033,0.62678751,3450.8,3450.0,2.2752]
[1719789985263,0.02997505,3450.7,3450.4,0.03663219]
[1719789985465,0.02997505,3450.7,3450.1,0.824]
[1719789985687,0.02997505,3450.7,3450.5,0.03656076]
[1719789985911,0.02997505,3450.7,3450.1,0.824]
[1719789986067,0.02997505,3450.7,3450.6,0.03648933]
[1719789986266,0.02997505,3450.9,3450.1,0.824]
[1719789986461,0.02997505,3450.9,3450.6,0.03648933]
[1719789986776,0.65676256,3450.9,3450.1,0.824]
[1719789986965,0.02997505,3450.9,3450.1,0.824]
[1719789987594,0.02997505,3451.0,3450.3,0.824]
[1719789987767,0.02997505,3451.0,3450.4,2.3601]
[1719789987963,0.02997505,3451.0,3450.5,0.03656076]
[1719789988595,0.02997505,3451.2,3450.5,0.03656076]
[1719789988891,1.36104313,3451.1,3450.5,0.03656076]
[1719789989074,0.02997505,3451.0,3450.5,0.03656076]
[1719789992064,0.02997505,3451.1,3450.7,0.824]
[1719789992373,9.75645622,3451.4,3450.9,0.824]
[1719789992593,2.4443,3451.4,3450.9,0.824]
[1719789994300,0.02997505,3451.3,3450.9,0.824]
[1719789995086,0.02997505,3451.3,3450.7,0.824]
[1719790008699,0.27740256,3451.3,3450.7,0.824]
[1719790008926,0.27740256,3451.3,3450.3,0.824]
[1719790008927,2.4252,3451.2,3450.3,0.824]
[1719790009083,2.4252,3451.0,3450.3,0.824]
[1719790009419,0.02997505,3450.9,3450.4,0.03653662]
[1719790009799,2.4252,3451.0,3450.5,0.824]
[1719790012024,2.4252,3451.0,3450.7,0.824]
[1719790012693,2.45517505,3451.2,3450.7,0.824]
[1719790012933,2.4252,3451.2,3450.7,0.824]
[1719790013383,2.4252,3451.2,3450.8,0.03927753]
[1719790015908,0.02997505,3451.1,3450.8,0.03927753]
[1719790016115,3.1885,3450.9,3450.8,0.03927753]
[1719790016437,3.1885,3450.9,3450.2,0.824]
[1719790016438,2.3645,3450.9,3450.2,0.824]
[1719790016599,2.3645,3450.9,3450.3,0.03661268]
[1719790017611,0.02997505,3450.8,3450.3,0.03661268]
[1719790017807,0.02997505,3450.8,3450.2,0.824]
[1719790018013,0.02997505,3450.8,3450.3,0.03661268]
[1719790018229,0.02997505,3450.8,3450.2,0.824]
[1719790018533,0.02997505,3450.8,3450.3,0.03661268]
[1719790018932,0.02997505,3450.8,3450.2,0.824]
[1719790019108,0.02997505,3450.8,3450.4,0.03654124]
[1719790019299,0.02997505,3450.8,3450.2,0.824]
[1719790019501,0.02997505,3450.8,3450.3,0.03661268]
[1719790019794,0.02997505,3450.8,3450.2,0.824]
[1719790019997,0.02997505,3450.8,3450.3,0.03661268]
[1719790020218,0.02997505,3450.8,3450.2,0.824]
[1719790020404,2.3645,3450.9,3450.4,0.824]
[1719790024807,2.3645,3450.9,3450.6,0.824]
[1719790025406,0.02997505,3451.4,3450.6,0.824]
[1719790025407,2.3335,3451.3,3450.6,0.824]
[1719790025612,2.3335,3451.3,3450.8,0.824]
[1719790025814,2.3335,3451.3,3450.9,0.03920303]
[1719790027247,9.62355622,3451.5,3451.0,0.824]
[1719790028450,7.31215622,3451.5,3451.2,0.824]
[1719790029527,7.31215622,3451.5,3451.0,0.824]
[1719790030137,2.3114,3451.6,3451.0,0.824]
[1719790031556,2.2932,3452.1,3451.4,0.824]
[1719790031725,0.57352566,3452.0,3451.4,0.824]
[1719790032149,0.02997505,3452.0,3451.4,0.824]
[1719790033026,2.2932,3452.1,3451.4,0.824]
[1719790035142,2.2932,3452.1,3451.6,0.824]
[1719790035941,2.4923,3452.4,3451.7,0.05794084]
[1719790036146,2.4923,3452.4,3451.8,0.824]
[1719790036544,2.4923,3452.4,3452.0,0.824]
[1719790037025,2.4923,3452.4,3451.8,0.824]
[1719790037440,2.4923,3452.4,3451.7,0.05794084]
[1719790038441,2.4923,3452.4,3451.8,0.824]
[1719790040227,2.4923,3452.4,3451.6,0.968]
[1719790040428,2.2509,3452.3,3451.6,0.968]
[1719790040676,2.2509,3452.3,3451.7,0.04192453]
[1719790055092,2.2509,3452.3,3451.7,0.86592453]
[1719790061218,2.2509,3452.3,3451.7,0.92386335]
[1719790061531,2.2509,3452.3,3451.9,0.824]
[1719790062125,2.468,3452.5,3452.0,0.04168863]
[1719790062330,2.468,3452.5,3451.9,0.824]
[1719790063705,7.31215622,3452.6,3451.8,0.05793374]
[1719790063706,7.31215622,3452.6,3452.1,0.824]
[1719790063908,2.468,3452.7,3452.1,0.824]
[1719790064444,2.468,3452.7,3452.4,0.824]
[1719790065010,2.468,3452.7,3452.5,0.04124673]
[1719790065498,2.468,3452.7,3452.2,0.824]
[1719790065700,2.468,3452.7,3452.6,0.0411523]
[1719790065903,2.468,3452.7,3452.2,0.824]
[1719790066201,2.468,3452.7,3452.6,0.0411523]
[1719790066411,2.468,3452.7,3452.2,0.824]
[1719790066705,2.468,3452.7,3452.2,0.8819311]
[1719790066910,2.468,3452.7,3452.3,0.04140527]
[1719790067130,2.468,3452.7,3452.2,0.824]
[1719790067332,2.468,3452.7,3452.4,0.04132094]
[1719790067533,2.468,3452.7,3452.2,0.824]
[1719790067835,2.468,3452.7,3452.5,0.04123662]
[1719790068132,2.468,3452.7,3452.6,0.0411523]
[1719790068435,2.468,3452.7,3452.2,0.824]
[1719790068808,2.468,3452.7,3452.3,0.04140527]
[1719790069136,2.468,3452.7,3452.2,0.824]
[1719790069332,2.468,3452.7,3452.4,0.04131705]
[1719790069535,2.468,3452.7,3452.2,0.824]
[1719790069831,2.468,3452.7,3452.5,0.04123273]
[1719790070152,2.468,3452.7,3452.6,0.04114841]
[1719790070646,2.468,3452.7,3451.8,0.824]
[1719790071149,2.468,3452.7,3451.9,0.04174029]
[1719790073310,2.468,3452.7,3452.0,2.3364]
[1719790073540,2.468,3452.7,3452.1,0.824]
[1719790073735,2.468,3452.7,3452.1,0.87256052]
[1719790074454,2.468,3452.7,3452.1,0.04856052]
[1719790074760,2.468,3452.7,3451.7,2.3364]
[1719790074761,2.468,3452.7,3452.0,0.824]
[1719790074953,2.468,3452.7,3452.2,0.04845364]
[1719790075116,2.468,3452.7,3452.0,0.824]
[1719790075317,2.468,3452.7,3452.3,0.04835057]
[1719790075552,2.468,3452.7,3451.6,0.144]
[1719790075753,2.466,3452.6,3452.4,7.5e-06]
[1719790075926,2.466,3452.6,3451.7,0.824]
[1719790076131,2.466,3452.6,3452.5,0.00350444]
[1719790076351,2.466,3452.6,3451.7,0.824]
[1719790076948,2.466,3452.6,3451.8,0.04780674]
[1719790078169,2.466,3452.6,3451.9,0.824]
[1719790078662,2.466,3452.6,3452.0,0.04757478]
[1719790078849,2.795,3452.6,3452.0,0.04757478]
[1719790079046,2.795,3452.6,3451.7,0.824]
[1719790079278,2.795,3452.6,3451.8,0.04780674]
[1719790079595,2.795,3452.6,3451.6,0.144]
[1719790079596,2.466,3452.4,3451.7,0.824]
[1719790079770,2.466,3452.4,3451.9,0.04769076]
[1719790079976,2.466,3452.4,3451.8,0.04780674]
[1719790080172,2.466,3452.4,3451.7,0.824]
[1719790080478,2.466,3452.4,3451.8,0.04780674]
[1719790080705,1.1035,3452.4,3451.8,0.04780674]
[1719790080867,3.00943904,3452.3,3451.6,0.144]
[1719790081060,2.466,3452.3,3451.6,0.144]
[1719790081461,2.466,3452.3,3451.7,0.04792273]
[1719790083385,0.54344244,3452.2,3451.7,0.04792273]
[1719790083582,2.4238,3452.1,3451.7,0.04792273]
[1719790085825,2.4238,3452.1,3451.6,0.144]
[1719790085976,2.4238,3452.1,3451.6,0.968]
[1719790086175,2.4238,3452.1,3451.7,0.04796017]
[1719790087208,2.4238,3452.1,3451.6,0.968]
[1719790089445,2.4238,3452.1,3451.6,0.94]
[1719790090309,2.4238,3452.1,3451.6,0.116]
[1719790090505,2.74858,3452.1,3451.6,0.116]
[1719790092906,2.74858,3452.1,3451.1,0.824]
[1719790093105,2.74858,3452.1,3451.3,0.824]
[1719790093106,2.4238,3452.1,3451.3,0.824]
[1719790093415,2.4238,3452.1,3451.5,0.824]
[1719790093957,2.4238,3452.1,3451.6,0.04273437]
[1719790095438,2.4238,3452.1,3451.3,0.824]
[1719790095659,2.4238,3452.1,3451.7,0.04263126]
[1719790095857,2.4238,3452.1,3451.3,0.824]
[1719790096024,2.4238,3452.1,3451.8,0.04252816]
[1719790096224,2.4238,3452.1,3451.3,0.824]
[1719790096618,2.4238,3452.1,3451.4,0.04294061]
[1719790097213,0.824,3452.1,3451.4,0.04294061]
[1719790097411,2.3984,3452.0,3451.4,0.04294061]
[1719790097643,2.3984,3452.0,3451.1,0.824]
[1719790098151,2.3984,3452.0,3451.2,0.04314687]
[1719790099137,2.3984,3452.0,3451.1,0.824]
[1719790099329,2.3984,3452.0,3451.2,0.04314687]
[1719790099955,0.824,3451.7,3451.2,0.04314687]
[1719790100164,2.4218,3451.6,3450.7,0.824]
[1719790100321,2.4218,3451.6,3450.8,0.04358229]
[1719790102351,2.4218,3451.6,3450.8,0.86758229]
[1719790106455,2.4218,3451.6,3450.8,0.04358229]
[1719790110935,2.4218,3451.6,3450.6,0.824]
[1719790111137,2.4218,3451.6,3450.9,0.0435638]
[1719790111437,2.2649,3451.4,3450.6,0.824]
[1719790111638,2.2649,3451.4,3451.0,0.04348537]
[1719790111950,2.2649,3451.4,3450.6,0.824]
[1719790111951,2.2649,3451.4,3451.1,0.04338223]
[1719790112153,2.2649,3451.4,3450.1,2.2602]
[1719790112359,2.2649,3451.4,3451.2,0.04327909]
[1719790112560,2.2649,3451.2,3450.2,3.0]
[1719790112747,2.2649,3451.2,3450.3,0.824]
[1719790114535,2.2649,3451.2,3450.5,0.824]
[1719790118467,2.425,3451.5,3451.1,0.824]
[1719790118651,2.425,3451.5,3450.9,0.824]
[1719790118856,3.39871562,3451.5,3450.7,0.824]
[1719790119055,2.425,3451.5,3450.7,0.824]
[1719790119857,2.425,3451.5,3450.5,0.824]
[1719790120338,2.425,3451.4,3450.5,0.824]
[1719790121148,2.425,3451.4,3450.2,5.4767]
[1719790121345,2.425,3451.4,3450.5,0.824]
[1719790122493,2.425,3451.4,3450.7,0.824]
[1719790124056,2.425,3451.4,3450.8,0.0436955]
[1719790126291,2.425,3451.4,3450.9,0.824]
[1719790127184,2.425,3451.4,3451.0,0.04892106]
[1719790128787,2.425,3451.4,3450.7,0.824]
[1719790129083,2.425,3451.4,3450.8,0.04915315]
[1719790129589,2.425,3451.4,3450.7,0.824]
[1719790131188,2.425,3451.4,3450.5,0.824]
[1719790132783,2.425,3451.4,3450.6,0.05795405]
[1719790133405,2.425,3451.4,3450.7,0.824]
[1719790139275,2.425,3451.4,3450.5,0.824]
[1719790140237,2.425,3451.4,3450.3,3.824]
[1719790140534,2.425,3451.4,3450.3,0.824]
[1719790140888,2.425,3451.4,3450.9,0.824]
[1719790151381,2.425,3451.4,3450.5,0.824]
[1719790155297,2.425,3451.4,3450.3,3.0]
[1719790155298,3.249,3451.4,3450.3,3.0]
[1719790155605,2.4297,3451.3,3450.4,0.824]
[1719790159871,2.4297,3451.3,3450.6,0.824]
[1719790162875,0.824,3450.9,3449.6,1.51368445]
[1719790163226,2.4297,3450.3,3449.6,0.06332909]
[1719790163398,2.4297,3450.3,3449.4,0.824]
[1719790163620,2.4297,3450.3,3449.6,0.824]
[1719790164805,2.75507,3450.3,3449.6,0.824]
[1719790165005,2.75507,3450.3,3449.3,1.64569701]
[1719790165208,2.4297,3450.3,3449.6,0.824]
[1719790166421,2.4297,3450.3,3449.3,1.64569701]
[1719790166581,2.4297,3450.3,3449.4,0.824]
[1719790166918,2.4297,3450.3,3449.3,1.64569701]
[1719790167090,2.4297,3450.3,3449.3,2.46969701]
[1719790167291,2.4432,3450.1,3449.3,2.46969701]
[1719790169012,2.4432,3450.1,3449.3,1.64569701]
[1719790169237,2.4432,3450.1,3449.4,0.824]
[1719790169885,2.4432,3450.1,3448.6,3.0]
[1719790170229,2.4432,3450.1,3449.1,0.824]
[1719790170541,2.4171,3449.9,3449.1,0.824]
[1719790172284,0.824,3449.8,3448.6,3.0]
[1719790172490,2.443,3449.5,3448.7,0.824]
[1719790172716,0.3267,3449.4,3448.7,0.824]
[1719790173019,2.443,3449.5,3448.9,0.824]
[1719790180608,2.443,3449.5,3448.7,0.824]
[1719790182106,2.443,3449.5,3448.3,3.0]
[1719790182351,2.443,3449.5,3448.6,0.824]
[1719790182642,2.443,3449.5,3448.2,2.2583]
[1719790182643,2.443,3449.5,3448.8,0.824]
[1719790183540,2.443,3449.5,3449.0,0.824]
[1719790186554,2.6873,3449.5,3448.8,0.824]
[1719790187449,2.443,3449.5,3448.8,0.824]
[1719790187651,2.443,3449.5,3449.0,0.824]
[1719790189154,2.443,3449.5,3448.3,3.0]
[1719790189155,2.443,3449.5,3448.8,0.824]
[1719790192610,2.443,3449.5,3449.0,0.824]
[1719790198814,2.443,3449.5,3449.2,0.824]
[1719790199534,2.3688,3449.7,3449.2,0.824]
[1719790203638,2.3688,3449.7,3449.0,0.05797948]
[1719790203813,7.31215622,3449.9,3449.6,0.824]
[1719790204009,2.4917,3450.0,3449.6,0.824]
[1719790206348,2.4917,3450.0,3449.8,0.824]
[1719790206560,2.4917,3450.0,3449.6,0.824]
[1719790210233,2.4917,3450.0,3449.2,16.9170435]
[1719790210234,2.3831,3450.2,3449.7,0.05797324]
[1719790210451,7.31215622,3450.4,3449.9,0.824]
[1719790211029,7.31215622,3450.4,3450.0,0.05796838]
[1719790211248,2.3831,3450.7,3450.2,0.824]
[1719790211452,2.4566,3451.3,3450.4,0.824]
[1719790211639,3.2806,3451.2,3450.2,0.824]
[1719790211836,2.4566,3451.1,3450.2,0.824]
[1719790213738,2.4847,3450.8,3449.8,3.0]
[1719790214081,2.4847,3450.6,3449.8,0.824]
[1719790214368,2.4847,3450.6,3450.0,0.824]
[1719790216460,2.4847,3450.6,3450.2,0.824]
[1719790219353,2.4847,3450.6,3450.4,0.824]
[1719790220498,2.4847,3450.6,3450.2,0.824]
[1719790221817,2.4847,3450.6,3450.4,0.824]
[1719790226324,2.4847,3450.6,3450.2,0.824]
[1719790226610,2.4847,3450.6,3450.0,0.824]
[1719790227311,2.4847,3450.6,3449.8,3.0]
[1719790227508,2.4847,3450.6,3450.1,0.824]
[1719790231386,2.73317,3450.6,3449.9,0.824]
[1719790232416,2.73317,3450.6,3449.3,5.4127]
[1719790232617,2.73317,3450.6,3449.8,0.824]
[1719790233746,2.73317,3450.6,3449.3,5.69963275]
[1719790233747,2.73317,3450.6,3449.9,0.824]
[1719790236317,2.73317,3450.6,3449.2,16.9170435]
[1719790236318,2.4173,3450.4,3449.2,16.9170435]
[1719790236525,2.4173,3450.4,3449.6,0.824]
[1719790237301,0.824,3450.1,3449.2,16.9170435]
[1719790237500,2.4491,3450.0,3449.2,16.9170435]
[1719790238322,2.4491,3450.0,3449.3,0.824]
[1719790240327,2.4491,3450.0,3449.5,0.824]
[1719790241105,2.4491,3450.0,3449.7,0.824]
[1719790259431,2.4491,3450.0,3449.2,16.9170435]
[1719790259631,2.69401,3450.0,3449.2,16.9170435]
[1719790259863,2.69401,3450.0,3449.2,17.7410435]
[1719790260491,2.69401,3450.0,3449.3,0.824]
[1719790262448,2.4491,3450.0,3449.3,0.824]
[1719790264382,2.4491,3450.0,3449.5,0.824]
[1719790264538,2.4491,3450.0,3449.7,0.824]
[1719790266465,2.4491,3450.0,3449.2,16.9170435]
[1719790266466,2.4491,3450.0,3449.9,0.824]
[1719790266775,2.4491,3450.0,3449.7,0.824]
[1719790267478,2.4491,3450.0,3449.5,0.824]
[1719790268084,2.69401,3450.0,3449.2,16.9170435]
[1719790268647,2.69401,3450.0,3449.3,0.824]
[1719790268977,2.4491,3450.0,3449.5,0.824]
[1719790273852,2.4491,3450.0,3449.7,0.824]
[1719790274052,2.4491,3450.0,3449.5,0.824]
[1719790280390,2.4491,3450.0,3449.3,0.824]
[1719790281761,2.4491,3450.0,3449.2,17.7410435]
[1719790284288,2.4491,3450.0,3449.4,0.824]
[1719790295490,2.4491,3450.0,3449.6,0.824]
[1719790305956,0.54573541,3449.9,3449.2,16.9170435]
[1719790306251,2.4491,3450.0,3449.5,0.824]
[1719790320359,2.4617,3450.4,3449.7,0.824]
[1719790320570,3.00737032,3450.3,3449.5,0.824]
[1719790320718,2.4617,3450.3,3449.5,0.824]
[1719790320922,2.4689,3450.1,3449.5,0.824]
[1719790321233,0.54565538,3450.0,3449.5,0.824]
[1719790323364,2.2599,3449.9,3449.3,0.824]
[1719790324228,2.2599,3449.9,3449.5,0.824]
[1719790327785,0.5458504,3449.8,3449.2,16.92038418]
[1719790327929,2.3966,3449.7,3449.4,0.824]
[1719790338762,2.3197,3449.9,3449.6,0.824]
[1719790339027,7.58547322,3450.5,3449.8,0.824]
[1719790339028,2.3197,3450.3,3449.8,0.824]
[1719790339304,0.54560647,3450.2,3449.8,0.824]
[1719790341682,7.31215622,3450.5,3450.1,0.824]
[1719790341923,0.54533395,3450.4,3450.0,2.3465]
[1719790342069,2.3197,3450.9,3450.3,0.824]
[1719790342269,0.21091418,3450.8,3450.7,0.824]
[1719790342506,0.21091418,3450.8,3450.5,0.824]
[1719790342725,2.3197,3450.9,3450.5,0.824]
[1719790342945,0.21091099,3450.8,3450.5,0.824]
[1719790343456,3.28288562,3450.9,3450.5,0.824]
[1719790344900,3.28288562,3450.9,3450.0,2.3465]
[1719790344901,0.2109144,3450.8,3449.6,2.3175]
[1719790345109,3.28288562,3450.9,3449.6,2.3175]
[1719790345110,2.55622961,3450.7,3449.9,0.824]
[1719790345310,2.3453,3450.7,3449.9,0.824]
[1719790345534,2.3453,3450.7,3449.3,5.3175]
[1719790345840,2.3453,3450.7,3449.9,0.824]
[1719790346208,2.3453,3450.7,3449.7,0.824]
[1719790346438,2.77642042,3450.6,3449.7,0.824]
[1719790347633,2.77642042,3450.6,3449.9,0.824]
[1719790347833,2.3453,3450.6,3450.1,0.824]
[1719790353183,2.3453,3450.6,3450.3,0.824]
[1719790353326,7.31215622,3451.0,3450.5,0.824]
[1719790353327,2.377,3450.9,3450.5,0.824]
[1719790353527,2.377,3450.9,3450.7,0.824]
[1719790353834,2.377,3450.9,3450.5,0.824]
[1719790354989,7.31215622,3451.0,3450.5,0.824]
[1719790356061,2.4942,3450.9,3450.2,0.824]
[1719790357546,7.31215622,3451.0,3449.4,2.3994]
[1719790357547,2.4122,3450.7,3449.4,2.3994]
[1719790357764,2.4122,3450.7,3450.0,0.824]
[1719790358945,2.4122,3450.7,3450.2,0.824]
[1719790363079,2.4122,3450.7,3449.5,3.0]
[1719790363390,2.4122,3450.7,3450.0,0.824]
[1719790363551,2.4122,3450.7,3449.5,3.0]
[1719790363751,2.4122,3450.7,3449.8,0.824]
[1719790365753,2.313,3450.5,3449.6,0.824]
[1719790367282,2.313,3450.5,3449.2,16.92038418]
[1719790367479,2.3248,3450.3,3449.3,3.0]
[1719790368392,3.1488,3450.2,3449.4,0.824]
[1719790368687,2.3248,3450.2,3449.4,0.824]
[1719790369679,2.3248,3450.2,3449.3,3.0]
[1719790369881,2.3248,3450.2,3449.2,16.92038418]
[1719790369882,2.3248,3450.1,3449.2,16.92038418]
[1719790370084,2.3248,3450.1,3449.2,17.74438418]
[1719790371166,2.3248,3450.1,3449.4,0.824]
[1719790373475,2.3248,3450.1,3449.2,16.92038418]
[1719790373697,2.63968,3450.1,3449.2,17.74438418]
[1719790374413,2.3248,3450.1,3449.2,17.74438418]
[1719790375684,2.3248,3450.1,3449.2,17.7410435]
[1719790378717,2.3248,3450.1,3449.4,0.824]
[1719790380487,2.3248,3450.1,3449.6,0.824]
[1719790382821,2.3248,3450.1,3449.4,0.824]
[1719790383180,2.3248,3450.1,3449.2,16.9170435]
[1719790383727,2.3248,3450.1,3449.5,0.824]
[1719790383728,2.16778568,3450.1,3449.5,0.824]
[1719790386675,2.16778568,3450.1,3449.3,0.824]
[1719790388893,2.16778568,3450.1,3449.2,16.9170435]
[1719790388894,2.16778568,3450.1,3449.2,17.7410435]
[1719790390826,2.13978568,3450.1,3449.2,17.7410435]
[1719790396023,2.13978568,3450.1,3449.2,17.8850435]
[1719790399023,0.824,3450.0,3449.2,17.0610435]
[1719790399252,0.824,3449.8,3449.2,17.0610435]
[1719790399427,2.3529,3449.7,3449.2,17.0610435]
[1719790407654,2.3529,3449.7,3449.3,0.824]
[1719790408033,2.3529,3449.7,3449.2,17.0610435]